fUST/lending_fUST_20250819
["ID","MTS","AMOUNT","RATE_DAILY","PERIOD"]
[380156229,1755581443223,-480.0,0.00019726,2]
[380156230,1755581443233,-480.0,0.00019726,2]
[380156231,1755581443243,-480.0,0.00019726,2]
[380156232,1755581443252,-480.0,0.00019726,2]
[380156233,1755581443261,-480.0,0.00019726,2]
[380156234,1755581443271,-480.0,0.00019726,2]
[380156235,1755581443281,-554.19,0.00019726,2]
[380156236,1755581443290,-480.0,0.00019726,2]
[380156237,1755581443299,-593.14,0.00019726,2]
[380156238,1755581443308,-480.0,0.00019726,2]
[380156239,1755581443318,-2664.82,0.00019726,2]
[380156240,1755581443327,-460.0,0.00019726,2]
[380156241,1755581443337,-480.0,0.00019726,2]
[380156242,1755581443347,-745.81,0.00019726,2]
[380156243,1755581443356,-480.0,0.00019726,2]
[380156244,1755581443366,-539.45,0.00019726,2]
[380156245,1755581443375,-480.0,0.00019726,2]
[380156246,1755581443384,-480.0,0.00019726,2]
[380156247,1755581443394,-480.0,0.00019726,2]
[380156248,1755581443403,-480.0,0.00019726,2]
[380156249,1755581443412,-480.0,0.00019726,2]
[380156250,1755581443422,-833.85,0.00019726,2]
[380156251,1755581443431,-489.23,0.00019726,2]
[380156252,1755581443440,-480.01,0.00019726,2]
[380156253,1755581443449,-480.0,0.00019726,2]
[380156254,1755581443459,-480.0,0.00019726,2]
[380156255,1755581443468,-1624.97,0.00019726,2]
[380156256,1755581443477,-522.78,0.00019726,2]
[380156257,1755581443486,-538.45,0.00019726,2]
[380156258,1755581443496,-480.0,0.00019726,2]
[380156259,1755581443505,-1520.77,0.00019726,2]
[380156260,1755581443515,-483.44201666,0.00019726,2]
[380156261,1755581443524,-480.0,0.00019726,2]
[380156262,1755581443533,-480.0,0.00019726,2]
[380156263,1755581443543,-829.27,0.00019726,2]
[380156264,1755581443553,-666.3,0.00019726,2]
[380156265,1755581443562,-480.0,0.00019726,2]
[380156266,1755581443571,-201.67987811,0.00019726,2]
[380156267,1755581443581,-480.0,0.00019726,2]
[380156268,1755581443590,-3434.93,0.00019726,2]
[380156269,1755581443599,-480.0,0.00019726,2]
[380156270,1755581443609,-628.41,0.00019726,2]
[380156271,1755581443618,-1015.84,0.00019726,2]
[380156272,1755581443627,-480.0,0.00019726,2]
[380156273,1755581443636,-480.0,0.00019726,2]
[380156274,1755581443645,-1370.66,0.00019726,2]
[380156275,1755581443655,-1147.67,0.00019726,2]
[380156276,1755581443664,-1210.23,0.00019726,2]
[380156277,1755581443673,-625.47,0.00019726,2]
[380156278,1755581443682,-480.0,0.00019726,2]
[380156280,1755581443691,-480.0,0.00019726,2]
[380156281,1755581443700,-629.81,0.00019726,2]
[380156282,1755581443709,-1220.13,0.00019726,2]
[380156284,1755581443718,-480.0,0.00019726,2]
[380156285,1755581443729,-948.03,0.00019726,2]
[380156286,1755581443737,-3872.5,0.00019726,2]
[380156287,1755581443746,-480.0,0.00019726,2]
[380156289,1755581443755,-480.0,0.00019726,2]
[380156291,1755581443765,-1790.51,0.00019726,2]
[380156292,1755581443774,-565.28188106,0.00019726,2]
[380156294,1755581443784,-562.38,0.00019726,2]
[380156295,1755581443793,-480.0,0.00019726,2]
[380156297,1755581443803,-1943.56,0.00019726,2]
[380156298,1755581443812,-598.77,0.00019726,2]
[380156299,1755581443821,-480.0,0.00019726,2]
[380156300,1755581443831,-480.0,0.00019726,2]
[380156301,1755581443840,-599.65,0.00019726,2]
[380156302,1755581443850,-221.61813835,0.00019726,2]
[380156303,1755581443859,-480.0,0.00019726,2]
[380156304,1755581443869,-480.0,0.00019726,2]
[380156305,1755581443879,-480.0,0.00019726,2]
[380156306,1755581443888,-4276.18,0.00019726,2]
[380156307,1755581443898,-480.0,0.00019726,2]
[380156308,1755581443907,-1285.0,0.00019726,2]
[380156309,1755581443917,-480.0,0.00019726,2]
[380156310,1755581443926,-480.0,0.00019726,2]
[380156311,1755581443935,-702.37,0.00019726,2]
[380156312,1755581443945,-539.61,0.00019726,2]
[380156313,1755581443954,-580.63,0.00019726,2]
[380156314,1755581443963,-751.89,0.00019726,2]
[380156315,1755581443972,-480.0,0.00019726,2]
[380156316,1755581443982,-480.0,0.00019726,2]
[380156317,1755581443992,-650.07,0.00019726,2]
[380156318,1755581444001,-1673.11,0.00019726,2]
[380156319,1755581444010,-480.0,0.00019726,2]
[380156320,1755581444019,-480.0,0.00019726,2]
[380156321,1755581444029,-480.0,0.00019726,2]
[380156322,1755581444038,-1524.95,0.00019726,2]
[380156323,1755581444048,-480.0,0.00019726,2]
[380156324,1755581444058,-480.0,0.00019726,2]
[380156325,1755581444068,-715.78,0.00019726,2]
[380156326,1755581444077,-491.76,0.00019726,2]
[380156327,1755581444086,-3791.41741299,0.00019726,2]
[380156328,1755581444280,-480.0,0.00019178,2]
[380156329,1755581444290,-353.02739975,0.00019178,2]
[380156330,1755581444302,-126.97260025,0.00019178,2]
[380156331,1755581444311,-1021.8398844,0.00019726,2]
[380156333,1755581446365,-313.317136,0.00019178,2]
[380156334,1755581446377,-166.682864,0.00019178,2]
[380156335,1755581446387,-480.0,0.00019178,2]
[380156336,1755581446397,-220.1710793,0.00019726,2]
[380156337,1755581446409,-50.04162331,0.00019726,2]
[380156338,1755581446418,-284.09637669,0.00019726,2]
[380156501,1755581512711,480.0,0.00027945,120]
[380156502,1755581557142,159.266538,0.00013699,2]
[380156504,1755581687256,252.48909817,0.00027,120]
[380156505,1755581726620,300.0,0.00027,120]
[380156515,1755582401129,-250.0,0.00018702,2]
[380156516,1755582401151,-196.15369234,0.0001882,2]
[380156538,1755582432081,-1671.20903164,0.0001882,2]
[380156539,1755582446110,-287.7592482,0.0001882,2]
[380156550,1755582551161,-306.03199506,0.0001882,2]
[380156551,1755582551183,-38.73046342,0.000189,2]
[380156553,1755582596563,159.266538,0.00013699,2]
[380156560,1755582632501,-220.64153906,0.000189,2]
[380156561,1755582632511,-683.19923167,0.00019078,2]
[380156562,1755582632521,-2536.09472234,0.00019078,2]
[380156563,1755582632531,-762.74544795,0.00019078,2]
[380156564,1755582632541,-359.0,0.00019176,2]
[380156565,1755582632550,-300.0,0.00019177,2]
[380156566,1755582632559,-1200.0,0.00019177,2]
[380156567,1755582632569,-174.03512774,0.00019177,2]
[380156568,1755582632579,-480.0,0.00019178,2]
[380156569,1755582632588,-480.0,0.00019178,2]
[380156570,1755582632598,-309.86719636,0.00019178,2]
[380156571,1755582632607,-480.0,0.00019178,2]
[380156572,1755582632616,-249.11699761,0.00019178,2]
[380156574,1755582632625,-461.6466669,0.00019178,2]
[380156575,1755582632634,-480.0,0.00019178,2]
[380156576,1755582632644,-480.0,0.00019178,2]
[380156577,1755582632653,-480.0,0.00019178,2]
[380156578,1755582632663,-480.0,0.00019178,2]
[380156579,1755582632673,-480.0,0.00019178,2]
[380156580,1755582632683,-480.0,0.00019178,2]
[380156581,1755582632693,-480.0,0.00019178,2]
[380156582,1755582632703,-480.0,0.00019178,2]
[380156583,1755582632712,-480.0,0.00019178,2]
[380156584,1755582632721,-480.0,0.00019178,2]
[380156585,1755582632731,-480.0,0.00019178,2]
[380156586,1755582632740,-480.0,0.00019178,2]
[380156587,1755582632749,-480.0,0.00019178,2]
[380156588,1755582632758,-480.0,0.00019178,2]
[380156589,1755582632767,-1010.52391408,0.00019178,2]
[380156590,1755582632777,-480.0,0.00019178,2]
[380156591,1755582632786,-480.0,0.00019178,2]
[380156592,1755582632795,-480.0,0.00019178,2]
[380156593,1755582632804,-480.0,0.00019178,2]
[380156594,1755582632814,-480.0,0.00019178,2]
[380156595,1755582632823,-460.0,0.00019178,2]
[380156596,1755582632833,-480.0,0.00019178,2]
[380156597,1755582632842,-484.36780417,0.00019178,2]
[380156603,1755582632970,-480.0,0.00019178,2]
[380156604,1755582632980,-480.0,0.00019178,2]
[380156605,1755582632989,-480.0,0.00019178,2]
[380156606,1755582632999,-480.0,0.00019178,2]
[380156607,1755582633008,-480.0,0.00019178,2]
[380156608,1755582633018,-480.0,0.00019178,2]
[380156609,1755582633028,-480.0,0.00019178,2]
[380156610,1755582633038,-480.0,0.00019178,2]
[380156611,1755582633048,-263.97935598,0.00019178,2]
[380156612,1755582633058,-460.0,0.00019178,2]
[380156613,1755582633068,-480.0,0.00019178,2]
[380156614,1755582633078,-480.0,0.00019178,2]
[380156615,1755582633087,-480.0,0.00019178,2]
[380156616,1755582633096,-335.6929231,0.00019178,2]
[380156617,1755582633106,-480.0,0.00019178,2]
[380156618,1755582633116,-480.0,0.00019178,2]
[380156619,1755582633126,-480.0,0.00019178,2]
[380156621,1755582633136,-480.0,0.00019178,2]
[380156622,1755582633145,-480.0,0.00019178,2]
[380156623,1755582633155,-480.0,0.00019178,2]
[380156624,1755582633164,-480.0,0.00019178,2]
[380156625,1755582633174,-613.3,0.00019178,2]
[380156626,1755582633183,-480.0,0.00019178,2]
[380156627,1755582633192,-480.0,0.00019178,2]
[380156628,1755582633202,-480.0,0.00019178,2]
[380156629,1755582633211,-480.0,0.00019178,2]
[380156630,1755582633220,-480.0,0.00019178,2]
[380156631,1755582633229,-480.0,0.00019178,2]
[380156632,1755582633239,-556.02575969,0.00019178,2]
[380156633,1755582633248,-245.23243078,0.00019178,2]
[380156634,1755582633258,-697.15,0.00019178,2]
[380156635,1755582633268,-480.0,0.00019178,2]
[380156636,1755582633277,-480.0,0.00019178,2]
[380156637,1755582633286,-480.0,0.00019178,2]
[380156639,1755582633295,-480.0,0.00019178,2]
[380156641,1755582633305,-480.0,0.00019178,2]
[380156643,1755582633315,-480.0,0.00019178,2]
[380156644,1755582633324,-480.0,0.00019178,2]
[380156646,1755582633333,-480.0,0.00019178,2]
[380156647,1755582633342,-480.0,0.00019178,2]
[380156649,1755582633352,-480.0,0.00019178,2]
[380156650,1755582633361,-480.0,0.00019178,2]
[380156651,1755582633371,-480.0,0.00019178,2]
[380156652,1755582633380,-480.0,0.00019178,2]
[380156653,1755582633390,-480.0,0.00019178,2]
[380156654,1755582633400,-480.0,0.00019178,2]
[380156655,1755582633409,-480.0,0.00019178,2]
[380156656,1755582633419,-480.0,0.00019178,2]
[380156657,1755582633428,-480.0,0.00019178,2]
[380156658,1755582633437,-480.0,0.00019178,2]
[380156659,1755582633450,-4902.01,0.00019178,2]
[380156660,1755582633459,-480.0,0.00019178,2]
[380156661,1755582633469,-480.0,0.00019178,2]
[380156662,1755582633479,-480.0,0.00019178,2]
[380156663,1755582633489,-480.0,0.00019178,2]
[380156664,1755582633499,-480.0,0.00019178,2]
[380156665,1755582633508,-480.0,0.00019178,2]
[380156666,1755582633518,-480.0,0.00019178,2]
[380156667,1755582633529,-480.0,0.00019178,2]
[380156668,1755582633539,-480.0,0.00019178,2]
[380156669,1755582633548,-205.10318379,0.00019178,2]
[380156670,1755582633558,-480.0,0.00019178,2]
[380156671,1755582633567,-480.0,0.00019178,2]
[380156672,1755582633577,-480.0,0.00019178,2]
[380156673,1755582633586,-460.0,0.00019178,2]
[380156674,1755582633595,-480.0,0.00019178,2]
[380156675,1755582633605,-480.0,0.00019178,2]
[380156676,1755582633614,-480.0,0.00019178,2]
[380156677,1755582633623,-480.0,0.00019178,2]
[380156678,1755582633634,-395.26369878,0.00019178,2]
[380156679,1755582633776,-84.73630122,0.00019178,2]
[380156680,1755582633785,-480.0,0.00019178,2]
[380156681,1755582633795,-537.53,0.00019178,2]
[380156682,1755582633805,-480.0,0.00019178,2]
[380156683,1755582633814,-480.0,0.00019178,2]
[380156684,1755582633823,-480.0,0.00019178,2]
[380156685,1755582633833,-480.0,0.00019178,2]
[380156686,1755582633842,-578.00794063,0.00019178,2]
[380156687,1755582633851,-480.0,0.00019178,2]
[380156688,1755582633863,-1261.24,0.00019178,2]
[380156689,1755582633873,-480.0,0.00019178,2]
[380156690,1755582633882,-480.0,0.00019178,2]
[380156691,1755582633892,-480.0,0.00019178,2]
[380156692,1755582633901,-480.0,0.00019178,2]
[380156693,1755582633910,-580.78,0.00019178,2]
[380156694,1755582633920,-285.8486887,0.00019178,2]
[380156695,1755582633930,-480.0,0.00019178,2]
[380156696,1755582633939,-921.03,0.00019178,2]
[380156697,1755582633948,-481.20961981,0.00019178,2]
[380156698,1755582633958,-149.21085124,0.00019178,2]
[380156712,1755582638559,-330.78914876,0.00019178,2]
[380156713,1755582638569,-627.95,0.00019178,2]
[380156714,1755582638578,-480.0,0.00019178,2]
[380156715,1755582638588,-480.0,0.00019178,2]
[380156716,1755582638597,-567.01,0.00019178,2]
[380156717,1755582638606,-235.62826813,0.00019178,2]
[380156718,1755582638619,-244.37173187,0.00019178,2]
[380156719,1755582638628,-480.0,0.00019178,2]
[380156720,1755582638636,-301.91365627,0.00019178,2]
[380156721,1755582638645,-480.0,0.00019178,2]
[380156722,1755582638655,-480.0,0.00019178,2]
[380156723,1755582638664,-1563.57,0.00019178,2]
[380156724,1755582638673,-441.474321,0.00019178,2]
[380156725,1755582638682,-480.0,0.00019178,2]
[380156726,1755582638692,-480.0,0.00019178,2]
[380156727,1755582638702,-530.94394615,0.00019178,2]
[380156728,1755582638711,-420.0,0.00019178,2]
[380156729,1755582638720,-480.0,0.00019178,2]
[380156730,1755582638729,-480.0,0.00019178,2]
[380156731,1755582638739,-480.0,0.00019178,2]
[380156732,1755582638748,-480.0,0.00019178,2]
[380156733,1755582638757,-480.0,0.00019178,2]
[380156734,1755582638766,-480.0,0.00019178,2]
[380156735,1755582638775,-480.0,0.00019178,2]
[380156736,1755582638785,-782.87,0.00019178,2]
[380156737,1755582638797,-480.0,0.00019178,2]
[380156738,1755582638806,-717.38,0.00019178,2]
[380156739,1755582638815,-480.0,0.00019178,2]
[380156740,1755582638824,-448.0897792,0.00019178,2]
[380156741,1755582638834,-771.98,0.00019178,2]
[380156742,1755582638843,-480.0,0.00019178,2]
[380156743,1755582638852,-480.0,0.00019178,2]
[380156744,1755582638862,-480.0,0.00019178,2]
[380156745,1755582638871,-480.0,0.00019178,2]
[380156746,1755582638880,-480.0,0.00019178,2]
[380156747,1755582638889,-480.0,0.00019178,2]
[380156748,1755582638899,-480.0,0.00019178,2]
[380156749,1755582638908,-480.0,0.00019178,2]
[380156750,1755582638917,-480.0,0.00019178,2]
[380156751,1755582638926,-480.0,0.00019178,2]
[380156752,1755582639042,-480.0,0.00019178,2]
[380156753,1755582639052,-3560.45,0.00019178,2]
[380156754,1755582639061,-480.0,0.00019178,2]
[380156755,1755582639070,-3366.14,0.00019178,2]
[380156756,1755582639079,-480.0,0.00019178,2]
[380156757,1755582639089,-480.0,0.00019178,2]
[380156758,1755582639098,-480.0,0.00019178,2]
[380156759,1755582639107,-725.24,0.00019178,2]
[380156760,1755582639117,-480.0,0.00019178,2]
[380156761,1755582639126,-480.0,0.00019178,2]
[380156762,1755582639135,-480.0,0.00019178,2]
[380156763,1755582639145,-1059.65,0.00019178,2]
[380156764,1755582639154,-480.0,0.00019178,2]
[380156765,1755582639164,-492.93291857,0.00019178,2]
[380156766,1755582639173,-553.19,0.00019178,2]
[380156767,1755582639182,-480.0,0.00019178,2]
[380156768,1755582639191,-480.0,0.00019178,2]
[380156769,1755582639201,-526.04799387,0.00019178,2]
[380156770,1755582639210,-480.0,0.00019178,2]
[380156771,1755582639219,-480.0,0.00019178,2]
[380156772,1755582639228,-1171.96,0.00019178,2]
[380156773,1755582639239,-480.0,0.00019178,2]
[380156774,1755582639248,-1280.07,0.00019178,2]
[380156775,1755582639257,-480.0,0.00019178,2]
[380156776,1755582639267,-582.59,0.00019178,2]
[380156777,1755582639276,-480.0,0.00019178,2]
[380156778,1755582639285,-480.0,0.00019178,2]
[380156779,1755582639296,-480.0,0.00019178,2]
[380156780,1755582639306,-480.0,0.00019178,2]
[380156781,1755582639316,-480.0,0.00019178,2]
[380156782,1755582639325,-480.0,0.00019178,2]
[380156783,1755582639334,-255.33087998,0.00019178,2]
[380156784,1755582639343,-460.91376589,0.00019178,2]
[380156785,1755582639352,-1280.41,0.00019178,2]
[380156786,1755582639361,-480.0,0.00019178,2]
[380156787,1755582639371,-483.94,0.00019178,2]
[380156788,1755582639379,-480.0,0.00019178,2]
[380156789,1755582639389,-480.0,0.00019178,2]
[380156790,1755582639398,-1148.94,0.00019178,2]
[380156791,1755582639408,-480.0,0.00019178,2]
[380156792,1755582639418,-480.0,0.00019178,2]
[380156793,1755582639428,-480.0,0.00019178,2]
[380156794,1755582639437,-480.0,0.00019178,2]
[380156795,1755582639447,-480.0,0.00019178,2]
[380156796,1755582639459,-461.64217663,0.00019178,2]
[380156797,1755582639468,-498.42137998,0.00019178,2]
[380156798,1755582639478,-480.0,0.00019178,2]
[380156799,1755582639487,-926.26,0.00019178,2]
[380156800,1755582639497,-480.0,0.00019178,2]
[380156801,1755582639506,-480.0,0.00019178,2]
[380156802,1755582639515,-440.0,0.00019178,2]
[380156803,1755582639525,-480.0,0.00019178,2]
[380156804,1755582639534,-480.0,0.00019178,2]
[380156805,1755582639545,-1818.11,0.00019178,2]
[380156806,1755582639555,-480.0,0.00019178,2]
[380156807,1755582639564,-480.0,0.00019178,2]
[380156808,1755582639573,-480.0,0.00019178,2]
[380156809,1755582639582,-625.80042618,0.00019178,2]
[380156810,1755582639591,-556.22,0.00019178,2]
[380156811,1755582639600,-360.0,0.00019178,2]
[380156812,1755582639610,-1922.89,0.00019178,2]
[380156813,1755582639620,-480.0,0.00019178,2]
[380156814,1755582639629,-480.0,0.00019178,2]
[380156815,1755582639638,-480.0,0.00019178,2]
[380156816,1755582639647,-480.0,0.00019178,2]
[380156817,1755582639657,-480.0,0.00019178,2]
[380156818,1755582639666,-480.0,0.00019178,2]
[380156819,1755582639675,-480.0,0.00019178,2]
[380156820,1755582639685,-480.0,0.00019178,2]
[380156821,1755582639694,-480.0,0.00019178,2]
[380156822,1755582639703,-480.0,0.00019178,2]
[380156823,1755582639713,-480.0,0.00019178,2]
[380156824,1755582639722,-480.0,0.00019178,2]
[380156825,1755582639731,-480.0,0.00019178,2]
[380156826,1755582639742,-480.0,0.00019178,2]
[380156827,1755582639751,-523.92,0.00019178,2]
[380156828,1755582639760,-500.28,0.00019178,2]
[380156829,1755582639769,-480.0,0.00019178,2]
[380156830,1755582639779,-356.8880709,0.00019178,2]
[380156831,1755582639788,-480.0,0.00019178,2]
[380156832,1755582639797,-480.0,0.00019178,2]
[380156833,1755582639805,-1627.94,0.00019178,2]
[380156834,1755582639814,-480.0,0.00019178,2]
[380156835,1755582639822,-480.0,0.00019178,2]
[380156836,1755582639831,-2447.66,0.00019178,2]
[380156837,1755582639840,-480.0,0.00019178,2]
[380156838,1755582639849,-480.0,0.00019178,2]
[380156839,1755582639858,-480.0,0.00019178,2]
[380156840,1755582639867,-480.0,0.00019178,2]
[380156841,1755582639876,-480.0,0.00019178,2]
[380156842,1755582639886,-480.0,0.00019178,2]
[380156843,1755582639895,-532.05,0.00019178,2]
[380156844,1755582639905,-480.0,0.00019178,2]
[380156845,1755582639914,-480.0,0.00019178,2]
[380156846,1755582639923,-460.0,0.00019178,2]
[380156847,1755582639933,-480.0,0.00019178,2]
[380156848,1755582639942,-4301.79,0.00019178,2]
[380156850,1755582639951,-681.56,0.00019178,2]
[380156852,1755582639960,-480.0,0.00019178,2]
[380156853,1755582639970,-480.0,0.00019178,2]
[380156854,1755582639978,-1409.65,0.00019178,2]
[380156855,1755582639987,-1253.65,0.00019178,2]
[380156856,1755582639997,-480.0,0.00019178,2]
[380156857,1755582640007,-480.0,0.00019178,2]
[380156858,1755582640017,-480.0,0.00019178,2]
[380156859,1755582640026,-480.0,0.00019178,2]
[380156860,1755582640036,-480.0,0.00019178,2]
[380156861,1755582640047,-600.75,0.00019178,2]
[380156862,1755582640056,-1537.16,0.00019178,2]
[380156863,1755582640066,-480.0,0.00019178,2]
[380156864,1755582640075,-480.0,0.00019178,2]
[380156865,1755582640084,-480.0,0.00019178,2]
[380156866,1755582640093,-480.0,0.00019178,2]
[380156867,1755582640102,-480.0,0.00019178,2]
[380156868,1755582640112,-480.0,0.00019178,2]
[380156869,1755582640121,-692.99,0.00019178,2]
[380156870,1755582640131,-465.97126011,0.00019178,2]
[380156871,1755582640141,-480.0,0.00019178,2]
[380156872,1755582640151,-480.0,0.00019178,2]
[380156873,1755582640161,-480.0,0.00019178,2]
[380156874,1755582640171,-480.0,0.00019178,2]
[380156875,1755582640180,-480.0,0.00019178,2]
[380156876,1755582640189,-480.0,0.00019178,2]
[380156877,1755582640198,-480.0,0.00019178,2]
[380156878,1755582640207,-480.0,0.00019178,2]
[380156879,1755582640216,-724.49,0.00019178,2]
[380156880,1755582640226,-480.0,0.00019178,2]
[380156882,1755582640236,-492.55,0.00019178,2]
[380156883,1755582640246,-480.0,0.00019178,2]
[380156884,1755582640256,-505.67,0.00019178,2]
[380156885,1755582640266,-519.72374108,0.00019178,2]
[380156886,1755582640276,-480.0,0.00019178,2]
[380156887,1755582640286,-515.14,0.00019178,2]
[380156888,1755582640298,-391.43733571,0.00019178,2]
[380156890,1755582640341,-88.56266429,0.00019178,2]
[380156891,1755582640350,-1390.743877,0.00019178,2]
[380156892,1755582640365,-238.086123,0.00019178,2]
[380156893,1755582640374,-500.0,0.00019178,2]
[380156894,1755582640384,-666.0,0.00019178,2]
[380156895,1755582640393,-151.0,0.000193,2]
[380156896,1755582640403,-14142.312899,0.00019329,2]
[380156897,1755582640632,-480.0,0.00019178,2]
[380156898,1755582640641,-874.59964158,0.00019329,2]
[380156899,1755582641429,-18418.48983094,0.00019329,2]
[380156900,1755582641441,-803.58003531,0.00019329,2]
[380156901,1755582641456,-833.2515499,0.00019329,2]
[380156902,1755582641475,-1175.66510949,0.00019329,2]
[380156904,1755582643600,-5008.58295334,0.00019329,2]
[380156907,1755582643665,-360.40286645,0.00019329,2]
[380157116,1755582646412,-480.0,0.00019178,2]
[380157118,1755582646422,-5228.726031,0.00019329,2]
[380157128,1755582646528,-641.00223132,0.00019329,2]
[380157131,1755582646540,-2486.89999999,0.00019329,2]
[380157134,1755582646552,-6390.00702025,0.00019329,2]
[380157223,1755582803093,50000.0,0.00027039,60]
[380157224,1755582822746,55943.802619,0.00027039,60]
[380157227,1755583364341,1000.0,0.00028,120]
[380157228,1755583366084,1000.0,0.00028,120]
[380157229,1755583368199,1000.0,0.00028,120]
[380157230,1755583370535,1000.0,0.00028,120]
[380157231,1755583419676,611.2,0.00028767,120]
[380157234,1755583533160,-168.0,0.00018884,2]
[380157235,1755583533185,-114.63419851,0.00018929,2]
[380157238,1755583625084,-53.36580149,0.00018929,2]
[380157239,1755583625105,-195.93091762,0.00018978,2]
[380157240,1755583625126,-338.63,0.00019,2]
[380157241,1755583625147,-195.93091762,0.00019003,2]
[380157242,1755583625168,-195.93091762,0.00019028,2]
[380157243,1755583625188,-195.93091762,0.00019052,2]
[380157244,1755583625208,-41.63039955,0.00019077,2]
[380157245,1755583626142,-154.30051807,0.00019077,2]
[380157246,1755583626162,-160.0,0.00019078,2]
[380157247,1755583626183,-106.93185362,0.00019078,2]
[380157248,1755583642084,-676.41105352,0.00019078,2]
[380157249,1755583712093,300.0,0.00028,120]
[380157251,1755583792784,1075.0,0.00028767,120]
[380157263,1755583832873,-626.49381443,0.00019078,2]
[380157264,1755583832882,-2121.16501862,0.00019078,2]
[380157265,1755583832892,-1607.87981086,0.00019078,2]
[380157266,1755583832901,-168.0,0.00019156,2]
[380157267,1755583832910,-1200.0,0.00019164,2]
[380157268,1755583832920,-1200.0,0.00019165,2]
[380157269,1755583832929,-300.0,0.00019165,2]
[380157270,1755583832939,-300.0,0.00019165,2]
[380157271,1755583832949,-152.13285498,0.00019166,2]
[380157272,1755583832958,-1145.07359719,0.00019166,2]
[380157273,1755583832973,-8891.78395398,0.00019166,2]
[380157321,1755583837338,159.266538,0.00013699,2]
[380157322,1755583838643,-521.94819443,0.00019166,2]
[380157323,1755583838652,-500.0,0.00019173,2]
[380157324,1755583838662,-174.83247957,0.00019177,2]
[380157325,1755583838671,-500.0,0.00019177,2]
[380157326,1755583838680,-584.49664421,0.00019177,2]
[380157327,1755583838690,-500.0,0.00019177,2]
[380157328,1755583838699,-500.0,0.00019177,2]
[380157329,1755583838708,-353.07153388,0.00019177,2]
[380157330,1755583838728,-146.92846612,0.00019177,2]
[380157331,1755583838737,-500.0,0.00019177,2]
[380157332,1755583838746,-500.0,0.00019177,2]
[380157333,1755583838755,-500.0,0.00019177,2]
[380157334,1755583838765,-413.78478839,0.00019177,2]
[380157335,1755583838777,-500.0,0.00019177,2]
[380157336,1755583838786,-199.09909832,0.00019177,2]
[380157337,1755583838795,-500.0,0.00019177,2]
[380157338,1755583838805,-480.0,0.00019178,2]
[380157339,1755583838814,-480.0,0.00019178,2]
[380157340,1755583838824,-480.0,0.00019178,2]
[380157341,1755583838833,-480.0,0.00019178,2]
[380157342,1755583838843,-480.0,0.00019178,2]
[380157343,1755583838853,-480.0,0.00019178,2]
[380157344,1755583838863,-480.0,0.00019178,2]
[380157345,1755583838872,-151.0,0.00019178,2]
[380157346,1755583838881,-151.0,0.00019178,2]
[380157347,1755583838891,-480.0,0.00019178,2]
[380157348,1755583838905,-480.0,0.00019178,2]
[380157350,1755583838919,-460.0,0.00019178,2]
[380157352,1755583838933,-480.0,0.00019178,2]
[380157353,1755583838944,-480.0,0.00019178,2]
[380157355,1755583838955,-480.0,0.00019178,2]